[Event "Titled Tuesday Blitz August 31 2021"]
[White "Eswaran, Ashritha"]
[Black "Florescu, Codrut-Constantin"]
[WhiteFideId "2080788"]
[BlackFideId "1202200"]
[WhiteElo "2450"]
[BlackElo "2243"]
[Result "1-0"]
[Round "08"]
[TimeControl "180+1"]
[Date "2021.08.31"]
[WhiteClock "0:00:24"]
[BlackClock "0:00:06"]

1. e4 {[%clk 0:02:59]}  c5 {[%clk 0:02:59]} 2. Nf3 {[%clk 0:02:58]}  e6 {[%clk 0:02:59]} 3. d4 {[%clk 0:02:58]}  cxd4 {[%clk 0:03:00]} 4. Nxd4 {[%clk 0:02:58]}  Nf6 {[%clk 0:03:00]} 5. Nc3 {[%clk 0:02:57]}  d6 {[%clk 0:03:01]} 6. g3 {[%clk 0:02:55]}  a6 {[%clk 0:02:57]} 7. Bg2 {[%clk 0:02:56]}  Nc6 {[%clk 0:02:56]} 8. O-O {[%clk 0:02:56]}  Bd7 {[%clk 0:02:56]} 9. Nb3 {[%clk 0:02:55]}  Be7 {[%clk 0:02:54]} 10. f4 {[%clk 0:02:55]}  Qc7 {[%clk 0:02:53]} 11. Kh1 {[%clk 0:02:55]}  O-O {[%clk 0:02:53]} 12. Be3 {[%clk 0:02:56]}  b5 {[%clk 0:02:47]} 13. a3 {[%clk 0:02:55]}  Rab8 {[%clk 0:02:45]} 14. g4 {[%clk 0:02:55]}  Rfc8 {[%clk 0:02:38]} 15. g5 {[%clk 0:02:54]}  Ne8 {[%clk 0:02:38]} 16. f5 {[%clk 0:02:53]}  Bf8 {[%clk 0:02:36]} 17. g6 {[%clk 0:02:47]}  hxg6 {[%clk 0:02:33]} 18. fxg6 {[%clk 0:02:46]}  fxg6 {[%clk 0:02:33]} 19. Qf3 {[%clk 0:02:41]}  Nf6 {[%clk 0:02:26]} 20. Qg3 {[%clk 0:02:40]}  Ne5 {[%clk 0:02:24]} 21. Bd4 {[%clk 0:02:38]}  Be8 {[%clk 0:02:13]} 22. Bh3 {[%clk 0:02:29]}  Bf7 {[%clk 0:02:13]} 23. Nd2 {[%clk 0:02:17]}  a5 {[%clk 0:02:09]} 24. Nf3 {[%clk 0:02:16]}  Nh5 {[%clk 0:02:02]} 25. Qf2 {[%clk 0:02:06]}  Nxf3 {[%clk 0:01:43]} 26. Qxf3 {[%clk 0:02:05]}  b4 {[%clk 0:01:43]} 27. axb4 {[%clk 0:01:57]}  axb4 {[%clk 0:01:42]} 28. Ra7 {[%clk 0:01:55]}  Rb7 {[%clk 0:01:42]} 29. Nd5 {[%clk 0:01:20]}  Qb8 {[%clk 0:01:06]} 30. Rxb7 {[%clk 0:01:14]}  Qxb7 {[%clk 0:01:06]} 31. Ne3 {[%clk 0:01:14]}  Rc7 {[%clk 0:00:55]} 32. Bxe6 {[%clk 0:01:12]}  Bxe6 {[%clk 0:00:47]} 33. Qxf8+ {[%clk 0:01:12]}  Kh7 {[%clk 0:00:48]} 34. Qf3 {[%clk 0:01:07]}  Rf7 {[%clk 0:00:42]} 35. Qg2 {[%clk 0:01:02]}  Rxf1+ {[%clk 0:00:41]} 36. Nxf1 {[%clk 0:01:02]}  d5 {[%clk 0:00:36]} 37. e5 {[%clk 0:01:00]}  Bf5 {[%clk 0:00:36]} 38. Qe2 {[%clk 0:00:54]}  Nf4 {[%clk 0:00:26]} 39. Qe3 {[%clk 0:00:52]}  Be4+ {[%clk 0:00:21]} 40. Kg1 {[%clk 0:00:51]}  g5 {[%clk 0:00:19]} 41. e6 {[%clk 0:00:40]}  Nxe6 {[%clk 0:00:17]} 42. Qh3+ {[%clk 0:00:39]}  Kg8 {[%clk 0:00:13]} 43. Qxe6+ {[%clk 0:00:39]}  Kh7 {[%clk 0:00:14]} 44. Qh3+ {[%clk 0:00:38]}  Kg6 {[%clk 0:00:13]} 45. Ne3 {[%clk 0:00:38]}  Qc6 {[%clk 0:00:12]} 46. Qh8 {[%clk 0:00:35]}  Qd7 {[%clk 0:00:11]} 47. Qf8 {[%clk 0:00:31]}  b3 {[%clk 0:00:11]} 48. c3 {[%clk 0:00:31]}  Qc7 {[%clk 0:00:09]} 49. Qe8+ {[%clk 0:00:28]}  Kh6 {[%clk 0:00:08]} 50. Qe5 {[%clk 0:00:28]}  Qd7 {[%clk 0:00:06]} 51. Kf2 {[%clk 0:00:24]}  Qh3 {[%clk 0:00:06]} 52. Qxg7+ {[%clk 0:00:24]}  Kh5 {[%clk 0:00:06]} 53. Qh8+ {[%clk 0:00:24]}  Kg6 {[%clk 0:00:06]} 54. Qxh3 {[%clk 0:00:24]} 1-0


[Site "https://www.chess.com"]

[Event "Titled Tuesday Blitz August 31 2021"]
[White "Gabdushev, Ruslan"]
[Black "Tanenbaum, Zachary"]
[WhiteFideId "4137833"]
[BlackFideId "2060850"]
[WhiteElo "2312"]
[BlackElo "2165"]
[Result "0-1"]
[Round "08"]
[TimeControl "180+1"]
[Date "2021.08.31"]
[WhiteClock "0:01:43"]
[BlackClock "0:02:14"]

1. c4 {[%clk 0:02:59]}  e5 {[%clk 0:03:00]} 2. Nc3 {[%clk 0:02:57]}  Nc6 {[%clk 0:03:00]} 3. e4 {[%clk 0:02:55]}  Nf6 {[%clk 0:03:01]} 4. g3 {[%clk 0:02:55]}  Bc5 {[%clk 0:03:02]} 5. Bg2 {[%clk 0:02:54]}  d6 {[%clk 0:03:03]} 6. h3 {[%clk 0:02:54]}  h5 {[%clk 0:03:03]} 7. d3 {[%clk 0:02:53]}  a6 {[%clk 0:03:01]} 8. Nge2 {[%clk 0:02:48]}  h4 {[%clk 0:02:58]} 9. g4 {[%clk 0:02:47]}  Bxg4 {[%clk 0:02:58]} 10. hxg4 {[%clk 0:02:43]}  Nxg4 {[%clk 0:02:59]} 11. Rf1 {[%clk 0:02:26]}  h3 {[%clk 0:02:59]} 12. Bf3 {[%clk 0:02:25]}  Nxf2 {[%clk 0:02:57]} 13. Qb3 {[%clk 0:02:10]}  Nxd3+ {[%clk 0:02:50]} 14. Kd2 {[%clk 0:02:07]}  Ncb4 {[%clk 0:02:48]} 15. Nd5 {[%clk 0:01:59]}  Qg5+ {[%clk 0:02:23]} 16. Kc3 {[%clk 0:01:54]}  Bd4+ {[%clk 0:02:13]} 17. Nxd4 {[%clk 0:01:52]}  exd4+ {[%clk 0:02:14]} 18. Kxd4 {[%clk 0:01:52]}  Nxc1 {[%clk 0:02:14]} 19. Qxb4 {[%clk 0:01:43]}  c5+ {[%clk 0:02:14]} 0-1


[Site "https://www.chess.com"]

[Event "Titled Tuesday Blitz August 31 2021"]
[White "Goltsev, Dmitry"]
[Black "Pert, Richard G"]
[WhiteFideId "24176710"]
[BlackFideId "404748"]
[WhiteElo "2369"]
[BlackElo "2441"]
[Result "1-0"]
[Round "08"]
[TimeControl "180+1"]
[Date "2021.08.31"]
[WhiteClock "0:00:39"]
[BlackClock "0:00:01"]

1. e4 {[%clk 0:02:58]}  d5 {[%clk 0:02:57]} 2. exd5 {[%clk 0:02:56]}  Nf6 {[%clk 0:02:57]} 3. Nf3 {[%clk 0:02:56]}  Bg4 {[%clk 0:02:56]} 4. Be2 {[%clk 0:02:56]}  Nxd5 {[%clk 0:02:49]} 5. h3 {[%clk 0:02:56]}  Bf5 {[%clk 0:02:45]} 6. d4 {[%clk 0:02:56]}  e6 {[%clk 0:02:43]} 7. O-O {[%clk 0:02:54]}  Be7 {[%clk 0:02:39]} 8. c4 {[%clk 0:02:54]}  Nf6 {[%clk 0:02:38]} 9. Nc3 {[%clk 0:02:54]}  O-O {[%clk 0:02:35]} 10. Bf4 {[%clk 0:02:53]}  Nc6 {[%clk 0:02:30]} 11. a3 {[%clk 0:02:50]}  h6 {[%clk 0:02:24]} 12. Qd2 {[%clk 0:02:49]}  Bd6 {[%clk 0:02:18]} 13. Rfd1 {[%clk 0:02:48]}  Ne4 {[%clk 0:02:06]} 14. Nxe4 {[%clk 0:02:47]}  Bxe4 {[%clk 0:02:07]} 15. Qe3 {[%clk 0:02:43]}  Bh7 {[%clk 0:02:01]} 16. d5 {[%clk 0:02:41]}  exd5 {[%clk 0:01:59]} 17. Rxd5 {[%clk 0:02:41]}  Re8 {[%clk 0:01:57]} 18. Qd2 {[%clk 0:02:37]}  Bxf4 {[%clk 0:01:52]} 19. Qxf4 {[%clk 0:02:36]}  Qe7 {[%clk 0:01:44]} 20. Bf1 {[%clk 0:02:36]}  Rad8 {[%clk 0:01:42]} 21. Re1 {[%clk 0:02:34]}  Qf8 {[%clk 0:01:39]} 22. Qxc7 {[%clk 0:02:33]}  Rxe1 {[%clk 0:01:35]} 23. Nxe1 {[%clk 0:02:34]}  Rc8 {[%clk 0:01:22]} 24. Qxb7 {[%clk 0:02:32]}  Be4 {[%clk 0:01:21]} 25. Rd1 {[%clk 0:02:19]}  Rb8 {[%clk 0:01:18]} 26. Qc7 {[%clk 0:02:15]}  Rxb2 {[%clk 0:01:16]} 27. Bd3 {[%clk 0:02:15]}  Qe8 {[%clk 0:00:56]} 28. Qd6 {[%clk 0:01:54]}  Bxd3 {[%clk 0:00:47]} 29. Nxd3 {[%clk 0:01:54]}  Re2 {[%clk 0:00:45]} 30. c5 {[%clk 0:01:46]}  g6 {[%clk 0:00:44]} 31. Kh2 {[%clk 0:01:35]}  h5 {[%clk 0:00:43]} 32. Nf4 {[%clk 0:01:21]}  Rxf2 {[%clk 0:00:39]} 33. Nxh5 {[%clk 0:01:05]}  Qe5+ {[%clk 0:00:31]} 34. Qxe5 {[%clk 0:01:04]}  Nxe5 {[%clk 0:00:32]} 35. Ng3 {[%clk 0:01:00]}  Rc2 {[%clk 0:00:29]} 36. Ne4 {[%clk 0:00:58]}  f5 {[%clk 0:00:28]} 37. Nf6+ {[%clk 0:00:58]}  Kf7 {[%clk 0:00:27]} 38. Nd7 {[%clk 0:00:57]}  Nf3+ {[%clk 0:00:26]} 39. Kg3 {[%clk 0:00:57]}  Ng5 {[%clk 0:00:26]} 40. c6 {[%clk 0:00:54]}  Ne4+ {[%clk 0:00:25]} 41. Kf4 {[%clk 0:00:54]}  Ke6 {[%clk 0:00:23]} 42. Nb8 {[%clk 0:00:49]}  Rxg2 {[%clk 0:00:16]} 43. Rc1 {[%clk 0:00:45]}  g5+ {[%clk 0:00:16]} 44. Ke3 {[%clk 0:00:44]}  Rg3+ {[%clk 0:00:15]} 45. Kd4 {[%clk 0:00:44]}  Rxa3 {[%clk 0:00:12]} 46. c7 {[%clk 0:00:43]}  Ra4+ {[%clk 0:00:12]} 47. Kd3 {[%clk 0:00:41]}  Ra3+ {[%clk 0:00:12]} 48. Ke2 {[%clk 0:00:41]}  Ra2+ {[%clk 0:00:11]} 49. Ke1 {[%clk 0:00:41]}  Nd6 {[%clk 0:00:10]} 50. Rc6 {[%clk 0:00:41]}  Ra1+ {[%clk 0:00:08]} 51. Kd2 {[%clk 0:00:40]}  Ra2+ {[%clk 0:00:08]} 52. Kc1 {[%clk 0:00:40]}  Ra5 {[%clk 0:00:01]} 53. c8=Q+ {[%clk 0:00:39]} 1-0


[Site "https://www.chess.com"]

[Event "Titled Tuesday Blitz August 31 2021"]
[White "Gutenev, Alexander"]
[Black "Martin Duque, Jesus"]
[WhiteFideId "4195540"]
[BlackFideId "2208954"]
[WhiteElo "2680"]
[BlackElo "2423"]
[Result "1/2-1/2"]
[Round "08"]
[TimeControl "180+1"]
[Date "2021.08.31"]
[WhiteClock "0:00:19"]
[BlackClock "0:00:11"]

1. e4 {[%clk 0:03:00]}  c5 {[%clk 0:02:59]} 2. Nf3 {[%clk 0:02:59]}  e6 {[%clk 0:02:59]} 3. d4 {[%clk 0:02:58]}  cxd4 {[%clk 0:02:59]} 4. Nxd4 {[%clk 0:02:59]}  Nc6 {[%clk 0:03:00]} 5. Nc3 {[%clk 0:02:59]}  Qc7 {[%clk 0:03:01]} 6. Be2 {[%clk 0:02:59]}  a6 {[%clk 0:03:01]} 7. O-O {[%clk 0:02:56]}  Nf6 {[%clk 0:03:01]} 8. Be3 {[%clk 0:02:56]}  Be7 {[%clk 0:03:01]} 9. f4 {[%clk 0:02:56]}  d6 {[%clk 0:03:02]} 10. Qe1 {[%clk 0:02:57]}  O-O {[%clk 0:03:02]} 11. Kh1 {[%clk 0:02:57]}  Nxd4 {[%clk 0:03:02]} 12. Bxd4 {[%clk 0:02:58]}  b5 {[%clk 0:03:01]} 13. a3 {[%clk 0:02:58]}  Bb7 {[%clk 0:03:02]} 14. Qg3 {[%clk 0:02:59]}  Rfe8 {[%clk 0:02:40]} 15. Rae1 {[%clk 0:02:58]}  Rad8 {[%clk 0:02:37]} 16. Bd3 {[%clk 0:02:57]}  Qd7 {[%clk 0:02:35]} 17. Nd1 {[%clk 0:02:51]}  Nh5 {[%clk 0:02:24]} 18. Qg4 {[%clk 0:02:48]}  e5 {[%clk 0:02:10]} 19. Qxd7 {[%clk 0:02:47]}  Rxd7 {[%clk 0:02:09]} 20. fxe5 {[%clk 0:02:35]}  dxe5 {[%clk 0:02:09]} 21. Be3 {[%clk 0:02:19]}  Nf6 {[%clk 0:02:07]} 22. Nc3 {[%clk 0:02:18]}  Rc8 {[%clk 0:02:02]} 23. Bg5 {[%clk 0:02:15]}  h6 {[%clk 0:01:35]} 24. Bh4 {[%clk 0:01:55]}  Nxe4 {[%clk 0:01:22]} 25. Bxe7 {[%clk 0:01:54]}  Nxc3 {[%clk 0:01:20]} 26. Rxe5 {[%clk 0:01:54]}  Re8 {[%clk 0:01:09]} 27. Bf6 {[%clk 0:01:50]}  Rxe5 {[%clk 0:01:06]} 28. Bxe5 {[%clk 0:01:51]}  Nd5 {[%clk 0:01:04]} 29. Re1 {[%clk 0:01:38]}  Re7 {[%clk 0:01:02]} 30. Kg1 {[%clk 0:01:39]}  f6 {[%clk 0:00:53]} 31. Bg3 {[%clk 0:01:34]}  Kf7 {[%clk 0:00:51]} 32. Rxe7+ {[%clk 0:01:34]}  Kxe7 {[%clk 0:00:52]} 33. Kf2 {[%clk 0:01:34]}  Bc6 {[%clk 0:00:49]} 34. c4 {[%clk 0:01:34]}  bxc4 {[%clk 0:00:45]} 35. Bxc4 {[%clk 0:01:35]}  a5 {[%clk 0:00:44]} 36. h4 {[%clk 0:01:29]}  Nb6 {[%clk 0:00:42]} 37. Bd3 {[%clk 0:01:26]}  Ke6 {[%clk 0:00:41]} 38. Bc7 {[%clk 0:01:25]}  Na4 {[%clk 0:00:41]} 39. b3 {[%clk 0:01:23]}  Nc5 {[%clk 0:00:38]} 40. Bc4+ {[%clk 0:01:22]}  Bd5 {[%clk 0:00:38]} 41. Bxd5+ {[%clk 0:01:06]}  Kxd5 {[%clk 0:00:38]} 42. Bxa5 {[%clk 0:01:07]}  Nxb3 {[%clk 0:00:37]} 43. Bc3 {[%clk 0:01:06]}  Nc5 {[%clk 0:00:37]} 44. Ke3 {[%clk 0:01:06]}  Nd7 {[%clk 0:00:28]} 45. h5 {[%clk 0:01:03]}  Nc5 {[%clk 0:00:19]} 46. g4 {[%clk 0:00:57]}  Ne6 {[%clk 0:00:17]} 47. a4 {[%clk 0:00:56]}  Kc4 {[%clk 0:00:18]} 48. Ba1 {[%clk 0:00:45]}  Kb4 {[%clk 0:00:17]} 49. Ke4 {[%clk 0:00:45]}  Kxa4 {[%clk 0:00:18]} 50. Kf5 {[%clk 0:00:45]}  Nf8 {[%clk 0:00:13]} 51. Bd4 {[%clk 0:00:35]}  Kb5 {[%clk 0:00:13]} 52. Bb2 {[%clk 0:00:33]}  Kc6 {[%clk 0:00:08]} 53. Bxf6 {[%clk 0:00:18]}  gxf6 {[%clk 0:00:08]} 54. Kxf6 {[%clk 0:00:19]}  Kd7 {[%clk 0:00:08]} 55. Kg7 {[%clk 0:00:20]}  Ke7 {[%clk 0:00:08]} 56. Kxh6 {[%clk 0:00:18]}  Kf7 {[%clk 0:00:09]} 57. g5 {[%clk 0:00:18]}  Ne6 {[%clk 0:00:09]} 58. g6+ {[%clk 0:00:18]}  Kg8 {[%clk 0:00:09]} 59. g7 {[%clk 0:00:19]}  Nxg7 {[%clk 0:00:10]} 60. Kg6 {[%clk 0:00:19]}  Nxh5 {[%clk 0:00:11]} 1/2-1/2


[Site "https://www.chess.com"]

[Event "Titled Tuesday Blitz August 31 2021"]
[White "Hansen, Eric"]
[Black "Indjic, Aleksandar"]
[WhiteFideId "2606771"]
[BlackFideId "911925"]
[WhiteElo "2568"]
[BlackElo "2643"]
[Result "0-1"]
[Round "08"]
[TimeControl "180+1"]
[Date "2021.08.31"]
[WhiteClock "0:00:01"]
[BlackClock "0:00:28"]

1. e4 {[%clk 0:03:00]}  e5 {[%clk 0:03:00]} 2. Nf3 {[%clk 0:03:00]}  Nf6 {[%clk 0:03:00]} 3. Nxe5 {[%clk 0:02:51]}  d6 {[%clk 0:03:00]} 4. Nf3 {[%clk 0:02:51]}  Nxe4 {[%clk 0:03:00]} 5. d4 {[%clk 0:02:51]}  d5 {[%clk 0:03:00]} 6. Bd3 {[%clk 0:02:51]}  Bd6 {[%clk 0:03:00]} 7. O-O {[%clk 0:02:48]}  O-O {[%clk 0:03:00]} 8. Nc3 {[%clk 0:02:49]}  Nxc3 {[%clk 0:02:53]} 9. bxc3 {[%clk 0:02:49]}  Bg4 {[%clk 0:02:48]} 10. h3 {[%clk 0:02:46]}  Bh5 {[%clk 0:02:48]} 11. Rb1 {[%clk 0:02:31]}  Nd7 {[%clk 0:02:43]} 12. c4 {[%clk 0:02:26]}  dxc4 {[%clk 0:02:37]} 13. Bxc4 {[%clk 0:02:26]}  Rb8 {[%clk 0:02:29]} 14. Rb5 {[%clk 0:02:14]}  c5 {[%clk 0:02:20]} 15. Be3 {[%clk 0:01:59]}  b6 {[%clk 0:02:15]} 16. Be2 {[%clk 0:01:54]}  Qc7 {[%clk 0:02:12]} 17. d5 {[%clk 0:01:50]}  Rfe8 {[%clk 0:02:05]} 18. c4 {[%clk 0:01:47]}  Bf4 {[%clk 0:01:55]} 19. Bxf4 {[%clk 0:01:42]}  Qxf4 {[%clk 0:01:55]} 20. Rb3 {[%clk 0:01:43]}  Bxf3 {[%clk 0:01:54]} 21. Rxf3 {[%clk 0:01:42]}  Qd6 {[%clk 0:01:54]} 22. Ra3 {[%clk 0:01:42]}  Ra8 {[%clk 0:01:46]} 23. Qd2 {[%clk 0:01:36]}  Re7 {[%clk 0:01:46]} 24. Re3 {[%clk 0:01:17]}  Rae8 {[%clk 0:01:45]} 25. Rxe7 {[%clk 0:01:18]}  Rxe7 {[%clk 0:01:46]} 26. Rb1 {[%clk 0:01:12]}  g6 {[%clk 0:01:37]} 27. Rb3 {[%clk 0:01:11]}  f5 {[%clk 0:01:32]} 28. Bf1 {[%clk 0:01:06]}  Kf7 {[%clk 0:01:30]} 29. a4 {[%clk 0:01:06]}  Qf6 {[%clk 0:01:22]} 30. a5 {[%clk 0:01:01]}  Qa1 {[%clk 0:01:14]} 31. Re3 {[%clk 0:00:56]}  Rxe3 {[%clk 0:01:12]} 32. Qxe3 {[%clk 0:00:56]}  Qe5 {[%clk 0:01:11]} 33. Qb3 {[%clk 0:00:54]}  Qc7 {[%clk 0:00:56]} 34. Qe3 {[%clk 0:00:43]}  Qd6 {[%clk 0:00:55]} 35. Qa3 {[%clk 0:00:36]}  bxa5 {[%clk 0:00:52]} 36. Qxa5 {[%clk 0:00:36]}  Qb6 {[%clk 0:00:53]} 37. Qa4 {[%clk 0:00:37]}  Nf6 {[%clk 0:00:53]} 38. g3 {[%clk 0:00:32]}  a5 {[%clk 0:00:51]} 39. Bg2 {[%clk 0:00:30]}  Ke7 {[%clk 0:00:51]} 40. Qa1 {[%clk 0:00:29]}  Qc7 {[%clk 0:00:48]} 41. Bf3 {[%clk 0:00:27]}  Kf7 {[%clk 0:00:47]} 42. Qe1 {[%clk 0:00:26]}  Qb6 {[%clk 0:00:45]} 43. Bd1 {[%clk 0:00:25]}  Ne4 {[%clk 0:00:44]} 44. Bc2 {[%clk 0:00:26]}  Qb4 {[%clk 0:00:43]} 45. Qf1 {[%clk 0:00:15]}  Ng5 {[%clk 0:00:35]} 46. Qe2 {[%clk 0:00:10]}  Qd2 {[%clk 0:00:29]} 47. Qxd2 {[%clk 0:00:02]}  Nf3+ {[%clk 0:00:29]} 48. Kf1 {[%clk 0:00:02]}  Nxd2+ {[%clk 0:00:29]} 49. Ke2 {[%clk 0:00:01]}  Nxc4 {[%clk 0:00:30]} 50. Kd3 {[%clk 0:00:01]}  Nb6 {[%clk 0:00:28]} 0-1


[Site "https://www.chess.com"]

[Event "Titled Tuesday Blitz August 31 2021"]
[White "Dronavalli, Harika"]
[Black "Korsunsky, Yuri"]
[WhiteFideId "5015197"]
[BlackFideId "14102722"]
[WhiteElo "2422"]
[BlackElo "2438"]
[Result "1-0"]
[Round "08"]
[TimeControl "180+1"]
[Date "2021.08.31"]
[WhiteClock "0:01:22"]
[BlackClock "0:00:41"]

1. Nf3 {[%clk 0:03:00]}  d5 {[%clk 0:02:53]} 2. c4 {[%clk 0:03:00]}  e6 {[%clk 0:02:53]} 3. g3 {[%clk 0:03:01]}  c5 {[%clk 0:02:53]} 4. Bg2 {[%clk 0:03:01]}  Nc6 {[%clk 0:02:53]} 5. O-O {[%clk 0:03:01]}  Nf6 {[%clk 0:02:53]} 6. b3 {[%clk 0:03:00]}  Be7 {[%clk 0:02:50]} 7. Bb2 {[%clk 0:03:00]}  O-O {[%clk 0:02:50]} 8. e3 {[%clk 0:02:58]}  b6 {[%clk 0:02:49]} 9. Nc3 {[%clk 0:02:55]}  Bb7 {[%clk 0:02:48]} 10. cxd5 {[%clk 0:02:53]}  Nxd5 {[%clk 0:02:42]} 11. Nxd5 {[%clk 0:02:54]}  Qxd5 {[%clk 0:02:31]} 12. d4 {[%clk 0:02:54]}  Rfd8 {[%clk 0:01:57]} 13. Ne5 {[%clk 0:02:47]}  Qxg2+ {[%clk 0:01:28]} 14. Kxg2 {[%clk 0:02:48]}  Nxe5+ {[%clk 0:01:28]} 15. f3 {[%clk 0:02:47]}  cxd4 {[%clk 0:01:06]} 16. exd4 {[%clk 0:02:47]}  Nc6 {[%clk 0:01:03]} 17. Rf2 {[%clk 0:02:31]}  Bf6 {[%clk 0:01:02]} 18. Rd2 {[%clk 0:02:29]}  Rd5 {[%clk 0:01:03]} 19. Qe2 {[%clk 0:02:18]}  Rad8 {[%clk 0:01:02]} 20. Rad1 {[%clk 0:02:18]}  h5 {[%clk 0:00:57]} 21. h4 {[%clk 0:02:16]}  g6 {[%clk 0:00:56]} 22. a3 {[%clk 0:02:13]}  Rf5 {[%clk 0:00:51]} 23. Rd3 {[%clk 0:02:07]}  Ba6 {[%clk 0:00:50]} 24. d5 {[%clk 0:01:53]}  Rfxd5 {[%clk 0:00:42]} 25. Bxf6 {[%clk 0:01:33]}  Bxd3 {[%clk 0:00:41]} 26. Qe3 {[%clk 0:01:22]} 1-0


[Site "https://www.chess.com"]

[Event "Titled Tuesday Blitz August 31 2021"]
[White "Harutjunyan, Gevorg"]
[Black "Maghsoodloo, Parham"]
[WhiteFideId "13300873"]
[BlackFideId "12539929"]
[WhiteElo "2498"]
[BlackElo "2601"]
[Result "1-0"]
[Round "08"]
[TimeControl "180+1"]
[Date "2021.08.31"]
[WhiteClock "0:00:06"]
[BlackClock "0:00:02"]

1. e4 {[%clk 0:03:00]}  c5 {[%clk 0:03:00]} 2. Nc3 {[%clk 0:02:59]}  Nc6 {[%clk 0:02:59]} 3. Bb5 {[%clk 0:02:57]}  Nd4 {[%clk 0:02:58]} 4. Bc4 {[%clk 0:02:56]}  g6 {[%clk 0:02:58]} 5. Nf3 {[%clk 0:02:54]}  Bg7 {[%clk 0:02:59]} 6. Nxd4 {[%clk 0:02:53]}  cxd4 {[%clk 0:02:58]} 7. Qf3 {[%clk 0:02:53]}  e6 {[%clk 0:02:17]} 8. Nb5 {[%clk 0:02:53]}  Be5 {[%clk 0:02:18]} 9. c3 {[%clk 0:02:50]}  dxc3 {[%clk 0:02:17]} 10. dxc3 {[%clk 0:02:44]}  a6 {[%clk 0:02:17]} 11. Nd4 {[%clk 0:02:40]}  b5 {[%clk 0:02:17]} 12. Bd3 {[%clk 0:02:35]}  Bb7 {[%clk 0:02:17]} 13. a4 {[%clk 0:02:26]}  b4 {[%clk 0:02:16]} 14. O-O {[%clk 0:02:22]}  Qc7 {[%clk 0:02:05]} 15. g3 {[%clk 0:02:17]}  bxc3 {[%clk 0:01:49]} 16. bxc3 {[%clk 0:02:17]}  Qxc3 {[%clk 0:01:48]} 17. Rb1 {[%clk 0:02:13]}  Bxd4 {[%clk 0:01:38]} 18. Rxb7 {[%clk 0:02:12]}  Ne7 {[%clk 0:01:29]} 19. Bh6 {[%clk 0:02:01]}  Nc6 {[%clk 0:00:54]} 20. Rd1 {[%clk 0:01:45]}  Bg7 {[%clk 0:00:38]} 21. Rc1 {[%clk 0:01:36]}  Ne5 {[%clk 0:00:33]} 22. Qd1 {[%clk 0:01:26]}  Qxd3 {[%clk 0:00:28]} 23. Bxg7 {[%clk 0:01:26]}  Qxe4 {[%clk 0:00:29]} 24. Bxe5 {[%clk 0:01:02]}  Qxb7 {[%clk 0:00:26]} 25. Bxh8 {[%clk 0:01:02]}  Rc8 {[%clk 0:00:26]} 26. Bf6 {[%clk 0:00:57]}  Rxc1 {[%clk 0:00:20]} 27. Qxc1 {[%clk 0:00:57]}  d6 {[%clk 0:00:21]} 28. a5 {[%clk 0:00:48]}  Kd7 {[%clk 0:00:20]} 29. Qc2 {[%clk 0:00:46]}  h5 {[%clk 0:00:18]} 30. Qa4+ {[%clk 0:00:41]}  Qc6 {[%clk 0:00:18]} 31. Qxc6+ {[%clk 0:00:39]}  Kxc6 {[%clk 0:00:19]} 32. Kf1 {[%clk 0:00:38]}  e5 {[%clk 0:00:19]} 33. Ke2 {[%clk 0:00:37]}  Kd5 {[%clk 0:00:20]} 34. Kd3 {[%clk 0:00:35]}  Ke6 {[%clk 0:00:20]} 35. Bd8 {[%clk 0:00:35]}  d5 {[%clk 0:00:18]} 36. Kc3 {[%clk 0:00:35]}  Kd6 {[%clk 0:00:18]} 37. Bf6 {[%clk 0:00:34]}  Ke6 {[%clk 0:00:17]} 38. Bg7 {[%clk 0:00:34]}  g5 {[%clk 0:00:16]} 39. Kb4 {[%clk 0:00:28]}  Kd6 {[%clk 0:00:13]} 40. Bf8+ {[%clk 0:00:22]}  Kc6 {[%clk 0:00:13]} 41. Be7 {[%clk 0:00:17]}  g4 {[%clk 0:00:13]} 42. Bf6 {[%clk 0:00:14]}  Kd6 {[%clk 0:00:13]} 43. Bg7 {[%clk 0:00:12]}  f5 {[%clk 0:00:07]} 44. Bf6 {[%clk 0:00:08]}  Ke6 {[%clk 0:00:03]} 45. Bg7 {[%clk 0:00:08]}  Kd6 {[%clk 0:00:03]} 46. Bf8+ {[%clk 0:00:09]}  Kc6 {[%clk 0:00:04]} 47. Bc5 {[%clk 0:00:08]}  d4 {[%clk 0:00:02]} 48. Kc4 {[%clk 0:00:08]}  d3 {[%clk 0:00:02]} 49. Be3 {[%clk 0:00:08]}  e4 {[%clk 0:00:03]} 50. Bf4 {[%clk 0:00:06]}  Kd7 {[%clk 0:00:02]} 51. Kd5 {[%clk 0:00:06]}  Ke7 {[%clk 0:00:02]} 52. Ke5 {[%clk 0:00:06]} 1-0


[Site "https://www.chess.com"]

[Event "Titled Tuesday Blitz August 31 2021"]
[White "Jarovinsky, Alexey"]
[Black "Mukhutdinov, Tigran"]
[WhiteFideId "14115131"]
[BlackFideId "34108570"]
[WhiteElo "2446"]
[BlackElo "2154"]
[Result "0-1"]
[Round "08"]
[TimeControl "180+1"]
[Date "2021.08.31"]
[WhiteClock "0:00:15"]
[BlackClock "0:00:56"]

1. Nc3 {[%clk 0:03:00]}  Nf6 {[%clk 0:02:59]} 2. e4 {[%clk 0:02:58]}  e5 {[%clk 0:02:59]} 3. f4 {[%clk 0:02:58]}  d5 {[%clk 0:02:59]} 4. fxe5 {[%clk 0:02:58]}  Nxe4 {[%clk 0:02:59]} 5. Qf3 {[%clk 0:02:58]}  Nxc3 {[%clk 0:02:59]} 6. dxc3 {[%clk 0:02:59]}  Be6 {[%clk 0:02:59]} 7. Qg3 {[%clk 0:02:55]}  c6 {[%clk 0:02:55]} 8. Nf3 {[%clk 0:02:52]}  Qb6 {[%clk 0:02:52]} 9. Nd4 {[%clk 0:02:49]}  Nd7 {[%clk 0:02:48]} 10. Bd3 {[%clk 0:02:45]}  Nc5 {[%clk 0:02:46]} 11. O-O {[%clk 0:02:09]}  Nxd3 {[%clk 0:02:41]} 12. Qxd3 {[%clk 0:02:05]}  c5 {[%clk 0:02:36]} 13. Nxe6 {[%clk 0:02:01]}  Qxe6 {[%clk 0:02:34]} 14. Bg5 {[%clk 0:01:47]}  h6 {[%clk 0:02:22]} 15. Bh4 {[%clk 0:01:44]}  c4 {[%clk 0:02:08]} 16. Qf3 {[%clk 0:01:17]}  Bc5+ {[%clk 0:02:05]} 17. Kh1 {[%clk 0:01:17]}  O-O {[%clk 0:02:00]} 18. Rae1 {[%clk 0:01:16]}  d4 {[%clk 0:01:53]} 19. Qxb7 {[%clk 0:01:03]}  Rab8 {[%clk 0:01:51]} 20. Qe4 {[%clk 0:01:02]}  dxc3 {[%clk 0:01:49]} 21. bxc3 {[%clk 0:01:03]}  Rbe8 {[%clk 0:01:43]} 22. h3 {[%clk 0:01:00]}  f5 {[%clk 0:01:39]} 23. Qe2 {[%clk 0:00:52]}  f4 {[%clk 0:01:30]} 24. Qe4 {[%clk 0:00:44]}  g5 {[%clk 0:01:29]} 25. Bf2 {[%clk 0:00:44]}  Bxf2 {[%clk 0:01:11]} 26. Rxf2 {[%clk 0:00:45]}  Rf5 {[%clk 0:01:11]} 27. Qd4 {[%clk 0:00:26]}  Rxe5 {[%clk 0:01:05]} 28. Rxe5 {[%clk 0:00:25]}  Qxe5 {[%clk 0:01:06]} 29. Qxc4+ {[%clk 0:00:25]}  Qe6 {[%clk 0:01:07]} 30. Qd4 {[%clk 0:00:17]}  Qe1+ {[%clk 0:01:00]} 31. Kh2 {[%clk 0:00:17]}  Qe5 {[%clk 0:01:01]} 32. Re2 {[%clk 0:00:15]}  Qxe2 {[%clk 0:00:56]} 0-1


[Site "https://www.chess.com"]